lending/lending_fUSD_20250808
["ID","MTS","AMOUNT","RATE_DAILY","PERIOD"]
[377992870,1754653839132,-400.0,0.00018763,2]
[377992871,1754653839141,-488.67,0.00018763,2]
[377992872,1754653839151,-434.23,0.00018763,2]
[377992873,1754653839160,-400.0,0.00018763,2]
[377992874,1754653839169,-400.0,0.00018763,2]
[377992875,1754653839179,-400.0,0.00018763,2]
[377992876,1754653839429,-448.4163416,0.00018763,2]
[377992877,1754653839438,-400.0,0.00018763,2]
[377992878,1754653839449,-400.0,0.00018763,2]
[377992879,1754653839458,-400.0,0.00018763,2]
[377992880,1754653839467,-709.62,0.00018763,2]
[377992881,1754653839476,-400.0,0.00018763,2]
[377992882,1754653839486,-400.0,0.00018763,2]
[377992883,1754653839495,-619.47,0.00018763,2]
[377992884,1754653839504,-530.71,0.00018763,2]
[377992885,1754653839513,-400.0,0.00018763,2]
[377992886,1754653839523,-399.51469393,0.00018763,2]
[377992887,1754653839533,-569.82,0.00018763,2]
[377992888,1754653839542,-400.0,0.00018763,2]
[377992889,1754653839551,-450.08,0.00018763,2]
[377992890,1754653839562,-435.61,0.00018763,2]
[377992891,1754653839571,-400.0,0.00018763,2]
[377992892,1754653839580,-682.41,0.00018763,2]
[377992893,1754653839590,-606.77,0.00018763,2]
[377992894,1754653839601,-563.26,0.00018763,2]
[377992895,1754653839610,-400.0,0.00018763,2]
[377992896,1754653839619,-618.19,0.00018763,2]
[377992897,1754653839629,-400.0,0.00018763,2]
[377992898,1754653839638,-435.4,0.00018763,2]
[377992899,1754653839648,-448.5,0.00018763,2]
[377992900,1754653839660,-709.47,0.00018763,2]
[377992901,1754653839669,-400.0,0.00018763,2]
[377992902,1754653839678,-539.48,0.00018763,2]
[377992903,1754653839688,-400.0,0.00018763,2]
[377992904,1754653839697,-400.0,0.00018763,2]
[377992905,1754653839706,-400.0,0.00018763,2]
[377992906,1754653839715,-400.0,0.00018763,2]
[377992907,1754653839724,-400.0,0.00018763,2]
[377992908,1754653839734,-400.0,0.00018763,2]
[377992909,1754653839743,-666.17,0.00018763,2]
[377992910,1754653839753,-400.0,0.00018763,2]
[377992911,1754653839763,-566.12,0.00018763,2]
[377992912,1754653839772,-922.96,0.00018763,2]
[377992913,1754653839781,-400.0,0.00018763,2]
[377992914,1754653839790,-768.85,0.00018763,2]
[377992915,1754653839799,-922.55,0.00018763,2]
[377992916,1754653839810,-400.0,0.00018763,2]
[377992917,1754653839819,-400.0,0.00018763,2]
[377992918,1754653839828,-400.0,0.00018763,2]
[377992919,1754653839839,-1065.05,0.00018763,2]
[377992920,1754653839850,-434.46,0.00018763,2]
[377992921,1754653839859,-400.0,0.00018763,2]
[377992922,1754653839869,-400.0,0.00018763,2]
[377992923,1754653839878,-767.95,0.00018763,2]
[377992924,1754653839888,-400.0,0.00018763,2]
[377992925,1754653839897,-400.0,0.00018763,2]
[377992926,1754653839906,-797.91,0.00018763,2]
[377992927,1754653839915,-400.0,0.00018763,2]
[377992928,1754653839925,-412.33,0.00018763,2]
[377992929,1754653839934,-400.0,0.00018763,2]
[377992930,1754653839943,-518.67,0.00018763,2]
[377992931,1754653839954,-400.0,0.00018763,2]
[377992932,1754653839967,-753.18,0.00018763,2]
[377992933,1754653839977,-423.95,0.00018763,2]
[377992934,1754653839986,-400.0,0.00018763,2]
[377992935,1754653839996,-400.0,0.00018763,2]
[377992936,1754653840006,-400.0,0.00018763,2]
[377992937,1754653840016,-521.12,0.00018763,2]
[377992938,1754653840025,-669.32,0.00018763,2]
[377992939,1754653840036,-720.74,0.00018763,2]
[377992940,1754653840045,-803.67,0.00018763,2]
[377992941,1754653840055,-400.0,0.00018763,2]
[377992942,1754653840064,-400.0,0.00018763,2]
[377992943,1754653840073,-400.0,0.00018763,2]
[377992944,1754653840083,-400.0,0.00018763,2]
[377992945,1754653840093,-400.0,0.00018763,2]
[377992946,1754653840102,-768.23,0.00018763,2]
[377992947,1754653840112,-484.41,0.00018763,2]
[377992948,1754653840122,-583.1,0.00018763,2]
[377992949,1754653840132,-400.0,0.00018763,2]
[377992950,1754653840142,-646.93,0.00018763,2]
[377992951,1754653840152,-616.66,0.00018763,2]
[377992952,1754653840162,-400.0,0.00018763,2]
[377992953,1754653840171,-400.0,0.00018763,2]
[377992954,1754653840181,-646.62,0.00018763,2]
[377992955,1754653840190,-473.67,0.00018763,2]
[377992956,1754653840200,-400.0,0.00018763,2]
[377992957,1754653840209,-575.32,0.00018763,2]
[377992958,1754653840218,-400.0,0.00018763,2]
[377992959,1754653840228,-400.0,0.00018763,2]
[377992960,1754653840237,-400.0,0.00018763,2]
[377992961,1754653840246,-400.0,0.00018763,2]
[377992962,1754653840255,-675.12,0.00018763,2]
[377992963,1754653840264,-674.21,0.00018763,2]
[377992964,1754653840273,-400.0,0.00018763,2]
[377992965,1754653840282,-400.0,0.00018763,2]
[377992966,1754653840292,-400.0,0.00018763,2]
[377992967,1754653840301,-400.0,0.00018763,2]
[377992968,1754653840310,-431.2,0.00018763,2]
[377992969,1754653840319,-1022.16,0.00018763,2]
[377992970,1754653840328,-448.64,0.00018763,2]
[377992971,1754653840337,-699.21,0.00018763,2]
[377992972,1754653840346,-400.0,0.00018763,2]
[377992973,1754653840355,-400.0,0.00018763,2]
[377992974,1754653840364,-478.57,0.00018763,2]
[377992975,1754653840373,-578.22,0.00018763,2]
[377992976,1754653840382,-402.72,0.00018763,2]
[377992977,1754653840391,-691.86,0.00018763,2]
[377992978,1754653840400,-400.0,0.00018763,2]
[377992979,1754653840409,-505.11,0.00018763,2]
[377992980,1754653840418,-535.55,0.00018763,2]
[377992981,1754653840427,-400.0,0.00018763,2]
[377992982,1754653840436,-308.69197564,0.00018763,2]
[377992983,1754653840445,-400.0,0.00018763,2]
[377992984,1754653840454,-1000.6,0.00018763,2]
[377992985,1754653840463,-638.93,0.00018763,2]
[377992986,1754653840473,-828.8,0.00018763,2]
[377992987,1754653840482,-540.65,0.00018763,2]
[377992988,1754653840491,-400.0,0.00018763,2]
[377992989,1754653840500,-400.0,0.00018763,2]
[377992990,1754653840510,-400.0,0.00018763,2]
[377992991,1754653840519,-1390.33,0.00018763,2]
[377992992,1754653840528,-817.55,0.00018763,2]
[377992993,1754653840537,-400.0,0.00018763,2]
[377992994,1754653840547,-572.84,0.00018763,2]
[377992995,1754653840555,-400.0,0.00018763,2]
[377992996,1754653840564,-400.0,0.00018763,2]
[377992997,1754653840573,-713.56,0.00018763,2]
[377992998,1754653840583,-925.06,0.00018763,2]
[377992999,1754653840592,-535.88,0.00018763,2]
[377993000,1754653840601,-400.0,0.00018763,2]
[377993001,1754653840611,-616.94,0.00018763,2]
[377993002,1754653840620,-467.02,0.00018763,2]
[377993004,1754653840630,-400.0,0.00018763,2]
[377993005,1754653840639,-550.03,0.00018763,2]
[377993006,1754653840648,-400.0,0.00018763,2]
[377993007,1754653840657,-450.36,0.00018763,2]
[377993008,1754653840666,-1048.17,0.00018763,2]
[377993009,1754653840675,-497.06,0.00018763,2]
[377993010,1754653840684,-400.0,0.00018763,2]
[377993011,1754653840693,-400.0,0.00018763,2]
[377993012,1754653840702,-487.46,0.00018763,2]
[377993013,1754653840711,-400.0,0.00018763,2]
[377993014,1754653840720,-1123.8,0.00018763,2]
[377993015,1754653840730,-670.15,0.00018763,2]
[377993016,1754653840738,-400.0,0.00018763,2]
[377993017,1754653840748,-400.0,0.00018763,2]
[377993019,1754653840758,-714.06,0.00018763,2]
[377993020,1754653840767,-400.0,0.00018763,2]
[377993021,1754653840776,-400.0,0.00018763,2]
[377993022,1754653840786,-400.0,0.00018763,2]
[377993023,1754653840795,-426.29,0.00018763,2]
[377993024,1754653840804,-551.4,0.00018763,2]
[377993025,1754653840813,-400.0,0.00018763,2]
[377993026,1754653840822,-400.0,0.00018763,2]
[377993027,1754653840831,-400.0,0.00018763,2]
[377993028,1754653840840,-159.13963238,0.00018763,2]
[377993029,1754653840850,-690.14,0.00018763,2]
[377993030,1754653840859,-400.0,0.00018763,2]
[377993031,1754653840868,-400.0,0.00018763,2]
[377993032,1754653840877,-538.46,0.00018763,2]
[377993033,1754653840886,-259.55522808,0.00018763,2]
[377993034,1754653840895,-400.0,0.00018763,2]
[377993035,1754653840905,-1180.31,0.00018763,2]
[377993036,1754653840915,-762.76,0.00018763,2]
[377993037,1754653840924,-641.12,0.00018763,2]
[377993038,1754653840933,-911.02,0.00018763,2]
[377993039,1754653840942,-400.0,0.00018763,2]
[377993040,1754653840952,-705.95,0.00018763,2]
[377993041,1754653840963,-400.0,0.00018763,2]
[377993042,1754653840973,-659.09,0.00018763,2]
[377993043,1754653840982,-504.14,0.00018763,2]
[377993044,1754653840991,-456.36,0.00018763,2]
[377993045,1754653841000,-548.59,0.00018763,2]
[377993046,1754653841009,-400.0,0.00018763,2]
[377993047,1754653841019,-400.0,0.00018763,2]
[377993048,1754653841028,-844.07,0.00018763,2]
[377993049,1754653841037,-400.0,0.00018763,2]
[377993050,1754653841046,-444.67,0.00018763,2]
[377993051,1754653841058,-400.0,0.00018763,2]
[377993052,1754653841067,-616.21,0.00018763,2]
[377993053,1754653841076,-400.0,0.00018763,2]
[377993054,1754653841085,-983.33,0.00018763,2]
[377993055,1754653841095,-400.0,0.00018763,2]
[377993056,1754653841104,-538.12,0.00018763,2]
[377993057,1754653841114,-400.0,0.00018763,2]
[377993058,1754653841123,-400.0,0.00018763,2]
[377993059,1754653841133,-664.16,0.00018763,2]
[377993060,1754653841142,-506.62,0.00018763,2]
[377993061,1754653841151,-400.0,0.00018763,2]
[377993062,1754653841160,-807.33,0.00018763,2]
[377993063,1754653841170,-536.2,0.00018763,2]
[377993064,1754653841179,-400.0,0.00018763,2]
[377993065,1754653841188,-403.36,0.00018763,2]
[377993066,1754653841199,-400.0,0.00018763,2]
[377993067,1754653841208,-400.0,0.00018763,2]
[377993068,1754653841217,-400.0,0.00018763,2]
[377993069,1754653841227,-400.0,0.00018763,2]
[377993070,1754653841236,-677.69,0.00018763,2]
[377993071,1754653841245,-715.34,0.00018763,2]
[377993072,1754653841255,-629.54,0.00018763,2]
[377993073,1754653841264,-400.0,0.00018763,2]
[377993075,1754653841274,-566.53,0.00018763,2]
[377993077,1754653841283,-400.0,0.00018763,2]
[377993079,1754653841292,-416.84,0.00018763,2]
[377993081,1754653841302,-400.0,0.00018763,2]
[377993082,1754653841311,-400.0,0.00018763,2]
[377993083,1754653841320,-400.0,0.00018763,2]
[377993084,1754653841329,-566.57,0.00018763,2]
[377993085,1754653841338,-634.19,0.00018763,2]
[377993086,1754653841347,-827.65,0.00018763,2]
[377993087,1754653841356,-400.13,0.00018763,2]
[377993088,1754653841365,-906.44,0.00018763,2]
[377993089,1754653841374,-410.82,0.00018763,2]
[377993090,1754653841383,-657.57,0.00018763,2]
[377993091,1754653841392,-400.0,0.00018763,2]
[377993092,1754653841401,-493.99,0.00018763,2]
[377993093,1754653841410,-400.0,0.00018763,2]
[377993094,1754653841419,-400.0,0.00018763,2]
[377993095,1754653841428,-580.09,0.00018763,2]
[377993096,1754653841437,-1098.82,0.00018763,2]
[377993097,1754653841446,-537.15,0.00018763,2]
[377993098,1754653841455,-400.0,0.00018763,2]
[377993099,1754653841464,-936.45,0.00018763,2]
[377993100,1754653841473,-840.14,0.00018763,2]
[377993101,1754653841482,-400.0,0.00018763,2]
[377993102,1754653841492,-400.0,0.00018763,2]
[377993103,1754653841501,-1133.75,0.00018763,2]
[377993104,1754653841510,-400.0,0.00018763,2]
[377993105,1754653841519,-649.72,0.00018763,2]
[377993106,1754653841529,-533.32017091,0.00018763,2]
[377993107,1754653841538,-400.0,0.00018763,2]
[377993108,1754653841547,-529.29,0.00018763,2]
[377993109,1754653841556,-534.23,0.00018763,2]
[377993110,1754653841566,-400.0,0.00018763,2]
[377993111,1754653841575,-487.09,0.00018763,2]
[377993112,1754653841584,-400.0,0.00018763,2]
[377993113,1754653841594,-1355.54,0.00018763,2]
[377993114,1754653841603,-326.70019396,0.00018763,2]
[377993115,1754653841612,-441.66,0.00018763,2]
[377993116,1754653841622,-606.18,0.00018763,2]
[377993117,1754653841631,-624.46,0.00018763,2]
[377993118,1754653841640,-612.35,0.00018763,2]
[377993119,1754653841649,-947.71,0.00018763,2]
[377993120,1754653841659,-716.96,0.00018763,2]
[377993121,1754653841668,-400.0,0.00018763,2]
[377993122,1754653841677,-620.92,0.00018763,2]
[377993123,1754653841687,-400.0,0.00018763,2]
[377993124,1754653841696,-933.12,0.00018763,2]
[377993125,1754653841705,-1343.92,0.00018763,2]
[377993126,1754653841715,-563.0,0.00018763,2]
[377993127,1754653841724,-400.0,0.00018763,2]
[377993128,1754653841733,-400.0,0.00018763,2]
[377993129,1754653841743,-487.99,0.00018763,2]
[377993130,1754653841752,-1071.69,0.00018763,2]
[377993131,1754653841761,-400.0,0.00018763,2]
[377993132,1754653841771,-400.0,0.00018763,2]
[377993133,1754653841781,-727.72,0.00018763,2]
[377993134,1754653841789,-727.78,0.00018763,2]
[377993135,1754653841798,-400.0,0.00018763,2]
[377993136,1754653841807,-358.37,0.00018763,2]
[377993137,1754653841817,-1664.41,0.00018763,2]
[377993138,1754653841826,-562.05,0.00018763,2]
[377993139,1754653841835,-400.0,0.00018763,2]
[377993140,1754653841844,-545.34,0.00018763,2]
[377993141,1754653841853,-400.0,0.00018763,2]
[377993142,1754653841862,-400.0,0.00018763,2]
[377993143,1754653841871,-400.0,0.00018763,2]
[377993144,1754653841881,-400.0,0.00018763,2]
[377993145,1754653841890,-477.34,0.00018763,2]
[377993146,1754653841899,-822.88,0.00018763,2]
[377993147,1754653841908,-525.24,0.00018763,2]
[377993148,1754653841918,-676.77,0.00018763,2]
[377993149,1754653841927,-591.6,0.00018763,2]
[377993150,1754653841936,-400.0,0.00018763,2]
[377993151,1754653841945,-846.35,0.00018763,2]
[377993152,1754653841955,-559.03,0.00018763,2]
[377993153,1754653841967,-1626.19,0.00018763,2]
[377993154,1754653841976,-1073.8,0.00018763,2]
[377993155,1754653841985,-400.0,0.00018763,2]
[377993156,1754653841994,-843.08,0.00018763,2]
[377993157,1754653842004,-622.62,0.00018763,2]
[377993158,1754653842014,-400.0,0.00018763,2]
[377993159,1754653842023,-613.48,0.00018763,2]
[377993160,1754653842032,-622.4,0.00018763,2]
[377993161,1754653842043,-400.0,0.00018763,2]
[377993162,1754653842053,-756.84,0.00018763,2]
[377993163,1754653842061,-702.5,0.00018763,2]
[377993164,1754653842071,-528.67,0.00018763,2]
[377993165,1754653842080,-1196.79,0.00018763,2]
[377993166,1754653842089,-609.44,0.00018763,2]
[377993167,1754653842099,-619.25,0.00018763,2]
[377993168,1754653842108,-783.49,0.00018763,2]
[377993169,1754653842118,-672.98,0.00018763,2]
[377993170,1754653842128,-400.0,0.00018763,2]
[377993171,1754653842137,-1092.22,0.00018763,2]
[377993172,1754653842146,-719.57,0.00018763,2]
[377993173,1754653842156,-400.0,0.00018763,2]
[377993174,1754653842165,-514.74,0.00018763,2]
[377993175,1754653842174,-400.0,0.00018763,2]
[377993176,1754653842183,-978.76,0.00018763,2]
[377993177,1754653842193,-400.0,0.00018763,2]
[377993178,1754653842203,-820.63,0.00018763,2]
[377993179,1754653842212,-400.0,0.00018763,2]
[377993180,1754653842221,-1425.87,0.00018763,2]
[377993181,1754653842230,-469.98,0.00018763,2]
[377993182,1754653842240,-648.55,0.00018763,2]
[377993183,1754653842249,-570.2,0.00018763,2]
[377993184,1754653842258,-775.82,0.00018763,2]
[377993185,1754653842268,-1075.89,0.00018763,2]
[377993186,1754653842277,-661.61,0.00018763,2]
[377993187,1754653842286,-400.0,0.00018763,2]
[377993188,1754653842294,-400.0,0.00018763,2]
[377993189,1754653842303,-583.82,0.00018763,2]
[377993190,1754653842312,-400.0,0.00018763,2]
[377993191,1754653842321,-400.0,0.00018763,2]
[377993192,1754653842331,-469.24,0.00018763,2]
[377993193,1754653842340,-800.54,0.00018763,2]
[377993194,1754653842349,-690.67,0.00018763,2]
[377993195,1754653842358,-400.0,0.00018763,2]
[377993196,1754653842367,-547.9,0.00018763,2]
[377993197,1754653842376,-751.86,0.00018763,2]
[377993198,1754653842386,-400.0,0.00018763,2]
[377993199,1754653842395,-718.61,0.00018763,2]
[377993200,1754653842403,-400.0,0.00018763,2]
[377993201,1754653842412,-400.0,0.00018763,2]
[377993202,1754653842422,-400.0,0.00018763,2]
[377993203,1754653842431,-400.0,0.00018763,2]
[377993204,1754653842440,-400.0,0.00018763,2]
[377993205,1754653842448,-510.59,0.00018763,2]
[377993206,1754653842457,-400.0,0.00018763,2]
[377993207,1754653842466,-531.57,0.00018763,2]
[377993208,1754653842475,-418.77,0.00018763,2]
[377993209,1754653842484,-400.0,0.00018763,2]
[377993210,1754653842493,-400.0,0.00018763,2]
[377993211,1754653842502,-400.0,0.00018763,2]
[377993212,1754653842511,-400.0,0.00018763,2]
[377993213,1754653842520,-646.62,0.00018763,2]
[377993214,1754653842529,-400.0,0.00018763,2]
[377993215,1754653842538,-400.0,0.00018763,2]
[377993216,1754653842547,-741.09,0.00018763,2]
[377993217,1754653842556,-525.11,0.00018763,2]
[377993218,1754653842565,-1095.17,0.00018763,2]
[377993219,1754653842574,-400.0,0.00018763,2]
[377993220,1754653842583,-717.23,0.00018763,2]
[377993221,1754653842592,-539.60343631,0.00018763,2]
[377993222,1754653842601,-462.2,0.00018763,2]
[377993223,1754653842610,-697.23,0.00018763,2]
[377993224,1754653842618,-792.94,0.00018763,2]
[377993225,1754653842627,-565.5,0.00018763,2]
[377993226,1754653842636,-571.21,0.00018763,2]
[377993227,1754653842645,-632.91,0.00018763,2]
[377993228,1754653842654,-741.75,0.00018763,2]
[377993229,1754653842663,-400.0,0.00018763,2]
[377993230,1754653842672,-616.18,0.00018763,2]
[377993231,1754653842682,-400.0,0.00018763,2]
[377993232,1754653842690,-400.0,0.00018763,2]
[377993233,1754653842700,-400.0,0.00018763,2]
[377993234,1754653842709,-703.39,0.00018763,2]
[377993235,1754653842718,-488.72,0.00018763,2]
[377993236,1754653842727,-1089.46,0.00018763,2]
[377993237,1754653842736,-400.0,0.00018763,2]
[377993238,1754653842746,-400.0,0.00018763,2]
[377993239,1754653842755,-1224.33,0.00018763,2]
[377993240,1754653842764,-400.0,0.00018763,2]
[377993241,1754653842773,-1050.97,0.00018763,2]
[377993242,1754653842782,-555.3,0.00018763,2]
[377993243,1754653842791,-400.0,0.00018763,2]
[377993244,1754653842801,-1273.97,0.00018763,2]
[377993245,1754653842810,-953.88,0.00018763,2]
[377993246,1754653842819,-400.0,0.00018763,2]
[377993247,1754653842828,-790.59,0.00018763,2]
[377993248,1754653842838,-1012.9,0.00018763,2]
[377993249,1754653842846,-400.0,0.00018763,2]
[377993250,1754653842856,-400.0,0.00018763,2]
[377993251,1754653842865,-400.0,0.00018763,2]
[377993252,1754653842875,-400.0,0.00018763,2]
[377993253,1754653842884,-827.88,0.00018763,2]
[377993254,1754653842893,-668.66,0.00018763,2]
[377993255,1754653842902,-740.1,0.00018763,2]
[377993256,1754653842912,-400.0,0.00018763,2]
[377993257,1754653842921,-708.68,0.00018763,2]
[377993258,1754653842930,-830.46,0.00018763,2]
[377993259,1754653842940,-1094.49,0.00018763,2]
[377993260,1754653842949,-879.38,0.00018763,2]
[377993261,1754653842958,-537.3,0.00018763,2]
[377993262,1754653842970,-594.17,0.00018763,2]
[377993263,1754653842980,-521.59,0.00018763,2]
[377993264,1754653842989,-531.5,0.00018763,2]
[377993265,1754653842998,-400.0,0.00018763,2]
[377993266,1754653843008,-1060.99,0.00018763,2]
[377993267,1754653843018,-400.0,0.00018763,2]
[377993268,1754653843027,-642.14,0.00018763,2]
[377993269,1754653843037,-996.91,0.00018763,2]
[377993270,1754653843046,-506.68,0.00018763,2]
[377993271,1754653843057,-1102.89,0.00018763,2]
[377993272,1754653843068,-1266.08,0.00018763,2]
[377993273,1754653843077,-661.33,0.00018763,2]
[377993275,1754653843088,-1429.98,0.00018763,2]
[377993276,1754653843099,-712.36,0.00018763,2]
[377993277,1754653843108,-400.0,0.00018764,2]
[377993278,1754653843119,-1345.65,0.00018764,2]
[377993279,1754653843129,-687.66,0.00018764,2]
[377993280,1754653843139,-492.56,0.00018764,2]
[377993281,1754653843148,-709.12,0.00018764,2]
[377993282,1754653843158,-400.0,0.00018764,2]
[377993283,1754653843167,-738.38,0.00018764,2]
[377993284,1754653843177,-888.63,0.00018764,2]
[377993285,1754653843186,-1392.12,0.00018764,2]
[377993286,1754653843195,-489.71,0.00018764,2]
[377993287,1754653843205,-1083.68,0.00018764,2]
[377993288,1754653843214,-1009.8,0.00018764,2]
[377993289,1754653843225,-1187.77,0.00018764,2]
[377993290,1754653843235,-779.25,0.00018764,2]
[377993291,1754653843244,-921.91,0.00018764,2]
[377993292,1754653843254,-1120.96,0.00018764,2]
[377993293,1754653843263,-467.96,0.00018764,2]
[377993294,1754653843273,-872.06,0.00018764,2]
[377993295,1754653843282,-698.44,0.00018764,2]
[377993296,1754653843291,-765.01,0.00018764,2]
[377993297,1754653843300,-698.36,0.00018764,2]
[377993298,1754653843530,-698.36,0.00018764,2]
[377993299,1754653843540,-876.93,0.00018764,2]
[377993300,1754653843550,-458.2,0.00018764,2]
[377993301,1754653843559,-886.3,0.00018764,2]
[377993302,1754653843570,-877.24,0.00018764,2]
[377993303,1754653843581,-400.0,0.00018764,2]
[377993304,1754653843592,-611.83,0.00018764,2]
[377993305,1754653843601,-996.61,0.00018764,2]
[377993306,1754653843611,-587.71,0.00018764,2]
[377993307,1754653843620,-428.25,0.00018764,2]
[377993308,1754653843630,-1104.12,0.00018764,2]
[377993309,1754653843639,-1107.75,0.00018764,2]
[377993310,1754653843649,-1046.54,0.00018764,2]
[377993311,1754653843659,-647.98,0.00018764,2]
[377993312,1754653843668,-964.46,0.00018764,2]
[377993313,1754653843678,-400.0,0.00018764,2]
[377993314,1754653843687,-555.02,0.00018764,2]
[377993315,1754653843697,-857.16,0.00018764,2]
[377993316,1754653843706,-816.74,0.00018764,2]
[377993317,1754653843715,-665.98,0.00018764,2]
[377993318,1754653843725,-757.46,0.00018764,2]
[377993319,1754653843734,-787.67,0.00018764,2]
[377993320,1754653843743,-685.95,0.00018764,2]
[377993321,1754653843752,-765.59,0.00018764,2]
[377993322,1754653843761,-400.0,0.00018764,2]
[377993323,1754653843771,-447.32,0.00018764,2]
[377993324,1754653843780,-2772.58,0.00018764,2]
[377993325,1754653843789,-400.0,0.00018764,2]
[377993326,1754653843798,-400.0,0.00018764,2]
[377993327,1754653843808,-1169.05,0.00018764,2]
[377993328,1754653843817,-403.01,0.00018764,2]
[377993329,1754653843827,-817.8,0.00018764,2]
[377993330,1754653843836,-400.0,0.00018764,2]
[377993331,1754653843845,-2738.66,0.00018764,2]
[377993332,1754653843854,-1022.63,0.00018764,2]
[377993333,1754653843864,-400.0,0.00018764,2]
[377993334,1754653843874,-400.0,0.00018764,2]
[377993335,1754653843883,-468.89,0.00018764,2]
[377993336,1754653843892,-1904.72,0.00018764,2]
[377993337,1754653843902,-5255.41,0.00018764,2]
[377993338,1754653843912,-1006.93,0.00018764,2]
[377993339,1754653843922,-2408.78051943,0.00018768,2]
[377993340,1754653843932,-5541.89249791,0.00018768,2]
[377993341,1754653843942,-500.0,0.00018773,2]
[377993342,1754653843951,-2408.78051943,0.00018795,2]
[377993343,1754653843963,-5541.89249791,0.00018795,2]
[377993344,1754653843973,-150.0,0.00018796,2]
[377993345,1754653843983,-616.08154,0.0001881,2]
[377993346,1754653843993,-2408.78051943,0.00018821,2]
[377993347,1754653844003,-5541.89249791,0.00018821,2]
[377993348,1754653844014,-2408.78051943,0.00018847,2]
[377993349,1754653844024,-5541.89249791,0.00018847,2]
[377993350,1754653844033,-2408.78051943,0.00018874,2]
[377993351,1754653844045,-5541.89249791,0.00018874,2]
[377993352,1754653844056,-151.73772575,0.000189,2]
[377993353,1754653844066,-203.51137386,0.000189,2]
[377993354,1754653844075,-2408.78051943,0.000189,2]
[377993355,1754653844085,-189.68888284,0.000189,2]
[377993356,1754653844096,-5541.89249791,0.000189,2]
[377993357,1754653844106,-406.4631954,0.000189,2]
[377993358,1754653844116,-1148.82138956,0.000189,2]
[377993359,1754653844126,-400.0,0.00018928,2]
[377993360,1754653844135,-400.0,0.00018928,2]
[377993361,1754653844145,-400.0,0.00018928,2]
[377993362,1754653844154,-400.0,0.00018928,2]
[377993363,1754653844164,-467.63,0.00018928,2]
[377993364,1754653844174,-9843.26,0.00018928,2]
[377993365,1754653844183,-840.68,0.00018928,2]
[377993366,1754653844193,-735.17,0.00018928,2]
[377993367,1754653844203,-400.0,0.00018928,2]
[377993368,1754653844212,-400.0,0.00018928,2]
[377993369,1754653844222,-951.62,0.00018928,2]
[377993370,1754653844231,-1036.88,0.00018928,2]
[377993371,1754653844241,-400.0,0.00018928,2]
[377993372,1754653844251,-502.08,0.00018928,2]
[377993373,1754653844260,-1472.91,0.00018928,2]
[377993374,1754653844270,-450.51,0.00018928,2]
[377993375,1754653844279,-1048.86,0.00018928,2]
[377993376,1754653844288,-1053.22,0.00018928,2]